Cogmind - Beta 10.1 @@@ ROGUE MODE // 2021.07.03 @ 20:21:34 Player: W-ALTER Result: Destroyed by G-47 Trooper with Particle Gun Performance ------------- Evolutions (0) 0 Regions Visited (1) 200 Robots Destroyed (6) 30 Value Destroyed (132) 132 Prototype IDs (2) 40 Alien Tech Used (0) 0 Bonus (0) 0 TOTAL SCORE: 402 Bonus ------- None Cogmind --------- Core Integrity 0/250 Matter 244/300 Energy 100/100 System Corruption 0% Temperature Cool (9) Movement Core (50) Location -10/Materials Parts ------- > --- POWER (1) -------- (None) > --- PROPULSION (2) --- (None) > --- UTILITY (2) ------ Seismic Analyzer > --- WEAPON (2) ------- (None) > --- INVENTORY (4) ---- Large Matter Pod (0) Small Laser Peak State ------------ > --- POWER ------------ Light Ion Engine > --- PROPULSION ------- Aluminum Leg Aluminum Leg > --- UTILITY ---------- Small Matter Pod Seismic Analyzer > --- WEAPON ----------- Assault Rifle Light Assault Rifle > --- INVENTORY -------- (None) [Rating: 7] Favorites ----------- Power Light Ion Engine Engine Light Ion Engine Propulsion Aluminum Leg Leg Aluminum Leg Utility Seismic Analyzer Device Structural Scanner Storage Small Matter Pod Processor Seismic Analyzer Weapon Assault Rifle Ballistic Gun Assault Rifle Build | -11 -10 ------- Run | Scr Mat Slots Evolved . | . . Power . | . . Propulsion . | . . Utility . | . . Weapon . | . . Parts Attached 9 | 5 4 Power 2 | 1 1 Engine 2 | 1 1 Core . | . . Reactor . | . . Propulsion 2 | 2 . Treads . | . . Leg 2 | 2 . Wheel . | . . Hover . | . . Flight . | . . Utility 3 | . 3 Device 1 | . 1 Storage 1 | . 1 Processor 1 | . 1 Hackware . | . . Protection . | . . Artifact . | . . Weapon 2 | 2 . Energy Gun . | . . Energy Cannon . | . . Ballistic Gun 2 | 2 . Ballistic Cannon . | . . Launcher . | . . Special Weapon . | . . Impact Weapon . | . . Slashing Weapon . | . . Piercing Weapon . | . . Special Melee Weapon . | . . Unidentified Prototypes . | . . Parts Lost 8 | . 8 Power 2 | . 2 Propulsion 2 | . 2 Utility 2 | . 2 Weapon 2 | . 2 Highest Loss Streak 6 | . 6 Average Slot Usage (%) 71 | . 71 Engine 9 | . 9 Leg 21 | . 21 Device 3 | . 3 Storage 4 | . 4 Processor 10 | . 10 Ballistic Gun 20 | . 20 Naked Turns . | . . Heaviest Build 7 | 6 7 Greatest Support 20 | 20 20 Greatest Overweight (x) 1 | . 1 Average Overweight (x) . | . . Largest Inventory Capacity 4 | 4 4 Average Capacity 4 | 4 4 Most Carried 3 | 3 2 Average Carried . | . . Final Capacity 4 | 4 4 Final Carried 2 | . 2 Class Distribution -------------------- 100% | Mutant Dominant Class ---------------- Mutant | -10/Materials Resources | -11 -10 ----------- Run | Scr Mat Matter Collected 307 | 250 57 Remotely . | . . Salvage Created 160 | 47 113 Parts 11 | 2 9 Haulers Intercepted . | . . Recyclers Shooed . | . . Parts Field Recycled . | . . Retrieved Matter . | . . Parts Self-Destructed . | . . Prevented . | . . Kills | -11 -10 ------- Run | Scr Mat Combat Hostiles Destroyed 6 | 1 5 Melee 1 | . 1 Guns 5 | 1 4 Classes Destroyed 2 | 1 1 Swarmer 3 | . 3 Grunt 3 | 1 2 Best Kill Streak 3 | 1 3 Combat Bots Only 3 | 1 3 Max Kills in Single Turn 1 | 1 1 Gunslinging . | . . Exploded . | . . Melee 1 | . 1 Uniques/NPCs Destroyed . | . . Combat | -11 -10 -------- Run | Scr Mat Damage Taken 755 | 33 722 Core 256 | . 256 Absorbed by Shields . | . . Core Remaining (%) 100 | 100 . Volleys Fired 30 | 3 27 Largest 2 | 2 2 Hottest 40 | 40 40 Shots Fired 57 | 6 51 Gun 57 | 6 51 Cannon . | . . Launcher . | . . Special . | . . Kinetic 57 | 6 51 Thermal . | . . Explosive . | . . Electromagnetic . | . . Robot Hit Streak 5 | 4 5 Robot Miss Streak 4 | 1 4 Penetration Max . | . . Secondary Targets 1 | . 1 Max Gunslinging Chain 1 | . 1 Shots Hit Robots 31 | 5 26 Core Hits 10 | 3 7 Critical Hits 1 | . 1 Critical Kills 1 | . 1 Critical Parts Destroyed . | . . Melee Attacks . | . . Impact . | . . Slashing . | . . Piercing . | . . Sneak Attacks . | . . Combat Hostiles . | . . Follow-up Attacks . | . . Damage Inflicted 350 | 49 301 Guns 346 | 49 297 Cannons . | . . Explosions . | . . Melee . | . . Ramming 4 | . 4 Kinetic 346 | 49 297 Thermal . | . . Explosive . | . . Electromagnetic . | . . Impact . | . . Slashing . | . . Piercing . | . . Highest Corruption . | . . Average Corruption . | . . Corruption Purged . | . . Overload Shots . | . . Overflow Damage . | . . Projectiles . | . . Explosions . | . . Melee . | . . Knockbacks . | . . Impact . | . . Kinetic . | . . Secondary . | . . Self-Inflicted Damage 2 | . 2 Shots . | . . Rammed 1 | . 1 Targets Rammed 1 | . 1 Kicked . | . . Crushed . | . . Highest Temperature 6 | 6 6 Average Temperature 5 | 6 5 Received Heat Transfer 276 | 18 258 Siege Activations . | . . Robots Corrupted . | . . Combat Hostiles . | . . Parts Fried . | . . Impact Corruptions . | . . Robots Melted . | . . Combat Hostiles . | . . Parts Melted . | . . Heat Transferred . | . . Parts Sabotaged . | . . Parts Stolen . | . . Parts Stripped . | . . Power Chain Reactions . | . . Missiles Intercepted . | . . Alert | -11 -10 ------- Run | Scr Mat Peak Influence 102 | 20 102 Initial 13 | . 13 Average 42 | 1 56 Maximum Alert Level . | . . Low Security (%) 100 | 100 100 Level 1 . | . . Level 2 . | . . Level 3 . | . . Level 4 . | . . Level 5 . | . . High Security . | . . Max Security . | . . Squads Dispatched 3 | . 3 Investigation 2 | . 2 Extermination . | . . Reinforcement 1 | . 1 Assault . | . . Garrison . | . . Intercept . | . . Construction Impeded . | . . Haulers Reinforced . | . . Stealth | -11 -10 --------- Run | Scr Mat Distress Signals . | . . Communications Jammed . | . . Distress Signals . | . . Times Spotted 17 | 1 16 Peak Tracking Total 5 | 1 5 Tactical Retreats 3 | . 3 Traps | -11 -10 ------- Run | Scr Mat Traps Triggered 1 | . 1 Indirectly . | . . Trap Hack Attempts . | . . Triggered . | . . Disarmed . | . . Reprogrammed . | . . Reused . | . . Traps Extracted . | . . Installed . | . . Triggered . | . . Machines | -11 -10 ---------- Run | Scr Mat Machines Disabled . | . . Max in Single Turn . | . . Machines Sabotaged . | . . Garrisons Compromised . | . . Overloaded Fab Kills . | . . Fab Network Shutdowns . | . . Hacking | -11 -10 --------- Run | Scr Mat Machines Accessed 2 | . 2 Terminals 1 | . 1 Fabricators . | . . Repair Stations . | . . Recycling Units 1 | . 1 Scanalyzers . | . . Garrison Access . | . . Total Hacks 12 | . 12 Successful 8 | . 8 Failed 4 | . 4 Catastrophic . | . . Database Lockouts . | . . Manual . | . . Terminals 8 | . 8 Fabricators . | . . Repair Stations . | . . Recycling Units 4 | . 4 Scanalyzers . | . . Garrison Access . | . . Terminal Hacks 5 | . 5 Robot Analysis 1 | . 1 Prototype ID Bank 1 | . 1 Locate Traps 1 | . 1 Maintenance Status 1 | . 1 Zone Layout 1 | . 1 Fabricator Hacks . | . . Repair Station Hacks . | . . Recycling Unit Hacks 3 | . 3 Report Inventory 1 | . 1 Retrieve Components 2 | . 2 Scanalyzer . | . . Garrison Access Hacks . | . . Unauthorized Hacks . | . . Terminals . | . . Fabricators . | . . Repair Stations . | . . Recycling Units . | . . Scanalyzers . | . . Garrison Access . | . . Data Cores Recovered . | . . Used . | . . Hacking Detections 2 | . 2 Full Trace Events 1 | . 1 Feedback Events . | . . Feedback Blocked . | . . Robot Schematics Acquired . | . . Robots Built . | . . Matter . | . . Time . | . . Total Robot Build Rating . | . . Part Schematics Acquired . | . . Parts Built . | . . Matter . | . . Time . | . . Total Part Build Rating . | . . Parts Repaired . | . . Time . | . . Parts Recycled . | . . Recycled Matter . | . . Retrieved Matter . | . . Retrieved Components 3 | . 3 Parts Scanalyzed . | . . Part Schematics Acquired . | . . Parts Damaged . | . . Bothacking | -11 -10 ------------ Run | Scr Mat Used RIF Installer . | . . Robots Hacked . | . . Non-combat . | . . Combat . | . . Robot Hacks Applied . | . . Relay Couplers Released . | . . Robots Rewired . | . . Allies Hacked . | . . Hacks Repelled . | . . Allies | -11 -10 -------- Run | Scr Mat Total Allies . | . . Largest Group . | . . Highest-Rated Group . | . . Highest-Rated Ally . | . . Total Orders . | . . Ally Attacks . | . . Total Damage . | . . Kills . | . . Allies Corrupted . | . . Allies Melted . | . . Intel | -11 -10 ------- Run | Scr Mat Robot Analysis Total 1 | . 1 Derelict Logs Recovered . | . . Drone Launches . | . . Drone Recoveries . | . . Exploration | -11 -10 ------------- Run | Scr Mat Turns Passed 307 | 77 230 Spaces Moved 232 | 59 173 Core 108 | 16 92 Treads . | . . Legs 124 | 43 81 Wheels . | . . Hover . | . . Flight . | . . Fastest Speed 50 | 50 50 Average Speed 88 | 101 84 Slowest Speed 120 | 120 120 Overloaded Moves . | . . Propulsion Burnouts . | . . Robots Hopped . | . . Cave-ins Triggered . | . . Exploration Rate (%) 17 | 7 28 Regions Visited 1 Branch Regions . Pre-discovered Areas . | . . Known Exits Taken . | . . Unknown Exits Taken 1 | 1 . Scrap Searched . | . . Spaces Dug . | . . Terrain Destroyed . | . . Melee . | . . Projectile . | . . AOE . | . . Terrain Rammed . | . . Walls Destroyed . | . . Machines Disabled . | . . Actions | -11 -10 --------- Run | Scr Mat Total 282 | 71 211 Wait . | . . Move 231 | 58 173 Hop . | . . Pick Up 11 | 5 6 Fast Attach . | . . Attach 9 | 5 4 Detach . | . . Swap . | . . Drop . | . . Fire 30 | 3 27 Melee . | . . Ram 1 | . 1 Kick . | . . Crush . | . . Escape Stasis . | . . Rewire . | . . Trap . | . . Miscellaneous . | . . Route ------- -11/Scrapyard -10/Materials History --------- Turn | Location | Event 2 | -11/Scrapyard | Met Revision 17 58 | -11/Scrapyard | Discovered new exit (range 8) 78 | -11/Scrapyard | Entered Materials 277 | -10/Materials | Core integrity fell below 50% 285 | -10/Materials | Lost 6 parts (1p2n1u2w) 305 | -10/Materials | Build established: Mutant 307 | -10/Materials | Core integrity fell below 20% 308 | -10/Materials | Destroyed by G-47 Trooper with Particle Gun Last Messages --------------- >>Recycling(Report) Matter reserves: 0 Inventory: Lgt. Ion Engine (72%) Structural Scanner (55%) Com. Wheel (33%) >>Retrieve(Components) Retrieving 3 components... Structural Scanner Com. Wheel Lgt. Ion Engine 00283_ Acquired Lgt. Ion Engine. 00286_ K-01 Serf cleans the Fusion Modulator. 00289_ Structural Scanner destroyed. 00299_ Lgt. Ion Engine destroyed. 00306_ Slammed into G-34 Mercenary. 00306_ G-34 Mercenary destroyed. [Achievement: Fist Fight] 00307_ K-01 Serf collects debris. 00307_ Acquired Sml. Laser. Map ----- +----------------------------------------------------+ | ????????????????????????????????????????????# | | ?????????????????????????????????####+####??# | | ???????????????????????########### #??####+# | | ???????????????????????? ##### | | ??????????????????????????# | | ??????????????????????????# | | ??????????????????????????# | | ??????????????????????????# ##### | | ??????????????????????????# ## #???### # | | ??????????????????????????# ##########?????# # | | ??????????????????????????# #??????????????#=# | | ??????????????????????????# #??????????????#[# | | ???????????????????######## #??????????????# # | | ???????????????????# T # ##########?????# # | | ???????????????????# # # #?????# # | | ???????????????????# """ # # """ #?????# # | | ???????????????????# """ # # """ #?????# # | | ???????????????????# """ # # """ #?????# # | | ???????????????????# # + =! #?????# # | | ???????????????????# ||! + # #?????# # | | ???????????????????# || # # "Y" #?????# # | | ???????????????????# |g g# # """ #?????# # | | ???????????????????# g # # #?????# # | | ???????????????????# """ #= ##############?#%# | | ???????????????????# """ %+* #???# #?#[# | | ???????????????????# """ @#### ##???# """ ### # | | ???????????????????# k #??# #????# """ # | | ???????????????????########??# #????# """ # | | ?????????????????????????????# #????# + T | | ????????????????????????????? ????# # | | ????????????????????????????? ????# # | | | ????????????????????????????? ????# "T" ## | | ????????????????????????????? ????# """ ## | | ????????????????????????????? ????########### | | ????????????????????????????# ###?????????????# | | ????????????????????????????# ???????????###### | | ????????????????????????????# ???######### | | ???????????????????????????? ???# ## | | ???????????????????????????? ???# """ ## | | ???????????????????????????? ???# """ ## ##### | | ???????????????????????????? ???# """ ## ##??? | | ?????????????????????????????????# # #### | | ?????????????????????????????????# """ # | | ?????????????????????????????????# """ / | | ????????????????????????????????????""" # | | ????????????????????????????????????????# #### | | ????????????????????????????????????????#######??? | | ?????????????????????????????????????????????????? | | ?????????????????????????????????????????????????? | | ?????????????????????????????????????????????????? | +----------------------------------------------------+ Best States ------------- Heat Dissipation 25 Energy Generation 10 Energy Capacity 125 Matter Stores 300 Matter Capacity 350 Sight Range 16 Terrain Scan Density 60 Evasion (%) 50 Item Schematics ----------------- None Robot Schematics ------------------ None Fabricated ------------ Nothing Alien Tech Used ----------------- None Achievements -------------- Fist Fight Challenges ------------ None Game ------ Seed UtilityAbsorptionManipulator Manual? 0 Play Time 00:09:07 Cumulative 2.2 hours Start 2021.07.03 @ 20:09:10 End 2021.07.03 @ 20:21:34 Sessions 1 Manual Loads 0 Difficulty Rogue Special Mode None Game No. 4 Rogue 4 Adventurer 0 Explorer 0 Win Type - Total 0 Types 0/0/0/0/0/0/0/0/0 Lore% 11 Gallery% 4 Achievement% 6 Wizard Run 0 Options --------- ASCII 0 Keyboard 0 Movement Mouse Keybinds 0 Fullscreen 1 Font 12/Smallcaps Map View 83x54 Tactical HUD 1 Map Filters NONE Filters NONE Steam X RUN: 1163d94b-3413-4cf1-854c-702d7a597567